{"text_format":"1","workbook":"xlsx","n_sheets":4,"sheets":["Menu","CB","Dash","Instruções"],"not_rendered":{"charts":2,"images":7,"macros":1,"external_links":0,"defined_names":3,"comments":2,"pivot_tables":0},"unopened":[],"bounds":{"document_bytes":16777216,"sheet_cells":100000,"rows_first":2000,"rows_last":500,"rows_between":2000,"halvings":0,"cell_chars":16384,"cell_head_chars":4096},"cells_cut":0,"cells_raw":0,"read":"whole","date_system":"1900"}

{"sheet":"Menu","index":0,"n_rows":26,"n_cols":7,"rows_kept":26,"cut":false,"hidden":false,"merged":[[25,4,25,5],[25,6,25,14]]}
[]
[]
[]
[]
[]
[]
[]
[]
[]
[]
[]
[]
[]
[]
[]
[]
[]
[]
[]
[]
[]
[]
[]
[]
[]
[null,null,null,null,"Empresa:",null,"Empresa ABCDE"]

{"sheet":"CB","index":1,"n_rows":56,"n_cols":9,"rows_kept":56,"cut":false,"hidden":false,"merged":[[10,2,10,8],[21,1,21,8],[55,1,55,3],[55,5,55,7],[12,1,12,5],[12,6,12,8],[13,6,13,8],[13,1,13,5],[15,1,15,8],[50,1,50,8]]}
[]
[]
[]
[]
[]
[]
[]
[]
[]
[]
[null,"Empresa:",{"$f":"Menu!G26","v":"Empresa ABCDE"}]
[]
[null,"RESPONSÁVEL PELA CONFERÊNCIA",null,null,null,null,"DATA DA CONFERÊNCIA"]
[null,"Silas Galvino",null,null,null,null,"2019-05-22"]
[]
[null,"PRESTAÇÃO DE CONTAS"]
[]
[null,"(     x     )","Parcial","(          )","Final","Período","2019-05-01","a","2019-05-15"]
[]
[null,"Banco:",null,"Agência:",null,"Conta Corrente:"]
[]
[null,"MOVIMENTAÇÃO BANCÁRIA"]
[null,"Discriminação","Cód. operação bancária","Nota fiscal","Categoria","Observação","Crédito/Débito",null,"SALDO (R$)"]
[null,"Saldo Inicial",null,null,null,null,null,null,2000]
[null,null,null,123,"Fornecedor","Pagamento",-500,null,{"$f":"G25+I24","v":1500}]
[null,null,null,5005,"Cliente","Recebimento",1000,null,{"$f":"G26+I25","v":2500}]
[null,null,null,null,null,null,null,null,{"$f":"G27+I26","v":2500}]
[null,null,null,null,null,null,null,null,2500]
[null,null,null,null,null,null,null,null,2500]
[null,null,null,null,null,null,null,null,2500]
[null,null,null,null,null,null,null,null,2500]
[null,null,null,null,null,null,null,null,2500]
[null,null,null,null,null,null,null,null,2500]
[null,null,null,null,null,null,null,null,2500]
[null,null,null,null,null,null,null,null,2500]
[null,null,null,null,null,null,null,null,2500]
[null,null,null,null,null,null,null,null,2500]
[null,null,null,null,null,null,null,null,2500]
[null,null,null,null,null,null,null,null,2500]
[null,null,null,null,null,null,null,null,2500]
[null,null,null,null,null,null,null,null,2500]
[null,null,null,null,null,null,null,null,2500]
[null,null,null,null,null,null,null,null,2500]
[null,null,null,null,null,null,null,null,2500]
[null,null,null,null,null,null,null,null,2500]
[null,null,null,null,null,null,null,null,2500]
[null,null,null,null,null,null,null,null,2500]
[null,null,null,null,null,null,null,null,2500]
[null,null,null,null,null,null,null,null,2500]
[null,"SALDO DISPONÍVEL",null,null,null,null,null,null,{"$f":"I49","v":2500}]
[null,"O valor do Saldo Disponível deverá ser o mesmo valor constado no Extrato Bancário do período."]
[]
[null,"Unidade Executora",null,null,null,"Responsável pela Execução"]
[]
[]
[null,"Assinatura",null,null,null,"Assinatura"]

{"sheet":"Dash","index":2,"n_rows":22,"n_cols":17,"rows_kept":22,"cut":false,"hidden":false,"merged":[[10,2,10,11],[12,1,12,7],[13,1,13,7],[12,9,12,11],[13,9,13,11],[15,1,15,11],[17,10,17,11],[17,7,17,8],[19,9,19,11],[19,5,19,6],[19,2,19,3]]}
[]
[]
[]
[]
[]
[]
[]
[]
[]
[]
[null,"Empresa:",{"$f":"Menu!G26","v":"Empresa ABCDE"}]
[]
[null,"RESPONSÁVEL PELA CONFERÊNCIA",null,null,null,null,null,null,null,"DATA DA CONFERÊNCIA"]
[null,{"$f":"CB!B14","v":"Silas Galvino"},null,null,null,null,null,null,null,{"$f":"CB!G14","v":"2019-05-22"}]
[]
[null,"PRESTAÇÃO DE CONTAS"]
[]
[null,{"$f":"CB!B18","v":"(     x     )"},"Parcial",{"$f":"CB!D18","v":"(          )"},"Final",null,"Período",{"$f":"CB!G18","v":"2019-05-01"},null,"a",{"$f":"CB!I18","v":"2019-05-15"}]
[]
[null,"Banco:",{"$f":"CB!C20","v":0},null,"Agência:",{"$f":"CB!E20","v":0},null,null,"Conta Corrente:",{"$f":"CB!G20","v":0}]
[null,null,null,null,null,null,null,null,null,null,null,null,null,"Débitos",{"$f":"SUMIF(CB!G25:G49,\"<0\")*-1","v":500},"Saldo Inicial",{"$f":"CB!I24","v":2000}]
[null,null,null,null,null,null,null,null,null,null,null,null,null,"Créditos",{"$f":"SUMIF(CB!G25:G49,\">0\")","v":1000},"Saldo Disponível",{"$f":"CB!I49","v":2500}]

{"sheet":"Instruções","index":3,"n_rows":0,"n_cols":0,"rows_kept":0,"cut":false,"hidden":false,"merged":[]}